Workbook

Sheet Cinco jueces
C2: Criterio de valoración | I2: Número de jueces | K2: 5 | L2: Fecha
C3: Escala de evaluación | D3: 1= Muy malo 2= Malo 3= Regular 4=Bueno 5= Muy bueno | J3: Máximo valor de la Escala | M3: 5
C5: Ítem | D5: Juez 1 | E5: Juez 2 | F5: Juez 3 | G5: Juez 4 | H5: Juez 5 | I5: Σxij | J5: Mx=Σxij/J | K5: CVCi=Mx/VMax | L5: Pei=(1/J)^J | M5: CVCic=CVCi-Pei
C6: 1 | D6: 4 | E6: 3 | F6: 2 | G6: 3 | H6: 5 | I6: =SUM(D6:H6) -> 17 | J6: =I6/5 -> 3.40 | K6: 0.68 | L6: =(1/5)^5 -> 0.00032 | M6: =K6-L6 -> 0.68
C7: 2 | D7: 2 | E7: 3 | F7: 2 | G7: 2 | H7: 2 | I7: 11 | J7: =I7/5 -> 2.20 | K7: =J7/3 -> 0.73 | L7: 0.00032 | M7: 0.73
C8: 3 | D8: 5 | E8: 4 | F8: 5 | G8: 4 | H8: 5 | I8: 23 | J8: 4.60 | K8: =J8/5 -> 0.92 | L8: 0.00032 | M8: 0.92
C9: 4 | D9: 5 | E9: 5 | F9: 5 | G9: 5 | H9: 5 | I9: 25 | J9: 5.00 | K9: 1.00 | L9: 0.00032 | M9: 1.00
C10: 5 | D10: 3 | E10: 4 | F10: 5 | G10: 5 | H10: 4 | I10: 21 | J10: 4.20 | K10: 0.84 | L10: 0.00032 | M10: 0.84
C11: 6 | D11: 5 | E11: 4 | F11: 5 | G11: 5 | H11: 5 | I11: 24 | J11: 4.80 | K11: 0.96 | L11: 0.00032 | M11: 0.96
C12: 7 | D12: 2 | E12: 3 | F12: 4 | G12: 3 | H12: 4 | I12: 16 | J12: 3.20 | K12: =J12/4 -> 0.80 | L12: 0.00032 | M12: 0.80
C13: 8 | D13: 4 | E13: 3 | F13: 3 | G13: 4 | H13: 3 | I13: 17 | J13: 3.40 | K13: 0.85 | L13: 0.00032 | M13: 0.85
C14: 9 | D14: 4 | E14: 5 | F14: 5 | G14: 3 | H14: 4 | I14: 21 | J14: 4.20 | K14: =J14/5 -> 0.84 | L14: 0.00032 | M14: 0.84
C15: 10 | D15: 4 | E15: 3 | F15: 5 | G15: 4 | H15: 5 | I15: 21 | J15: 4.20 | K15: 0.84 | L15: 0.00032 | M15: 0.84
M16: =SUM(M6:M15) -> 8.46
C17: Peit=(1/J)^J | M17: =(1/5)^5 -> 0.00032
C18: Coeficiente de Validez de Contenido Total CVCt=ΣCVCic/número de ítems | M18: =M16/10 -> 0.8460
C19: Coeficiente de Validez de Contenido Toral Corregido CVCtc=CVCt-Peit | M19: =M18-M17 -> 0.8457
